[Event "*** SCC Grand Prix: Titled Tuesday Blitz"]
[Site "Chess.com"]
[Date "2020.09.29"]
[Round "4"]
[White "SHIVACalypso"]
[Black "PotapovaM"]
[Result "0-1"]
[WhiteElo "2342"]
[BlackElo "2560"]
[TimeControl "180+1"]
[EndTime "10:40:51 PDT"]
[Termination "PotapovaM won by resignation"]

1. Nf3 {[%clk 0:03:00.9]} 1... Nf6 {[%clk 0:03:00]} 2. c4 {[%clk 0:03:00.9]}
2... e6 {[%clk 0:02:59.5]} 3. g3 {[%clk 0:03:01.2]} 3... d5 {[%clk 0:02:59.6]}
4. Bg2 {[%clk 0:03:01.5]} 4... dxc4 {[%clk 0:02:59.2]} 5. Qa4+ {[%clk
0:02:59.2]} 5... Nbd7 {[%clk 0:02:59.4]} 6. Qxc4 {[%clk 0:02:56.9]} 6... a6
{[%clk 0:02:59.8]} 7. O-O {[%clk 0:02:54.9]} 7... b5 {[%clk 0:03:00]} 8. Qc6
{[%clk 0:02:53.9]} 8... Rb8 {[%clk 0:02:59.1]} 9. b3 {[%clk 0:02:49.8]} 9... Bb7
{[%clk 0:02:58.5]} 10. Qc2 {[%clk 0:02:50]} 10... c5 {[%clk 0:02:58.7]} 11. Bb2
{[%clk 0:02:48.3]} 11... Be7 {[%clk 0:02:58.4]} 12. d3 {[%clk 0:02:46.8]} 12...
O-O {[%clk 0:02:58]} 13. Nbd2 {[%clk 0:02:47.2]} 13... Rc8 {[%clk 0:02:52.8]}
14. Rac1 {[%clk 0:02:41.5]} 14... h6 {[%clk 0:02:50.7]} 15. Rfd1 {[%clk
0:02:31.1]} 15... Nb8 {[%clk 0:02:47.7]} 16. Ne5 {[%clk 0:02:21.7]} 16... Bxg2
{[%clk 0:02:46.8]} 17. Kxg2 {[%clk 0:02:22.6]} 17... Nfd7 {[%clk 0:02:40.8]} 18.
Ndf3 {[%clk 0:02:19.5]} 18... Nxe5 {[%clk 0:02:37.5]} 19. Nxe5 {[%clk
0:02:20.4]} 19... Nc6 {[%clk 0:02:37.4]} 20. Nxc6 {[%clk 0:02:17]} 20... Rxc6
{[%clk 0:02:38.3]} 21. b4 {[%clk 0:02:17.1]} 21... Qd5+ {[%clk 0:02:30.4]} 22.
Kg1 {[%clk 0:02:15.5]} 22... Qxa2 {[%clk 0:02:18]} 23. e4 {[%clk 0:02:00.5]}
23... c4 {[%clk 0:01:52.7]} 24. Qc3 {[%clk 0:01:40.8]} 24... f6 {[%clk
0:01:39.9]} 25. d4 {[%clk 0:01:35.8]} 25... Rcc8 {[%clk 0:01:30.3]} 26. d5
{[%clk 0:01:34.2]} 26... exd5 {[%clk 0:01:16.7]} 27. exd5 {[%clk 0:01:35.1]}
27... Bd6 {[%clk 0:01:12.7]} 28. Re1 {[%clk 0:01:16.9]} 28... Qa4 {[%clk
0:00:52.2]} 29. Ba3 {[%clk 0:01:09.5]} 29... Be5 {[%clk 0:00:48.4]} 30. Rxe5
{[%clk 0:00:55.3]} 30... fxe5 {[%clk 0:00:49.3]} 31. Bb2 {[%clk 0:00:55.6]}
31... Rfe8 {[%clk 0:00:41.8]} 32. d6 {[%clk 0:00:53.3]} 32... Rcd8 {[%clk
0:00:41.6]} 33. Qd2 {[%clk 0:00:49.1]} 33... Qb3 {[%clk 0:00:34.7]} 34. Qd5+
{[%clk 0:00:46.7]} 34... Kh8 {[%clk 0:00:28.1]} 35. Bxe5 {[%clk 0:00:46.8]}
35... Qd3 {[%clk 0:00:22.5]} 36. Qc5 {[%clk 0:00:36.5]} 36... Rxe5 {[%clk
0:00:19.2]} 37. Qxe5 {[%clk 0:00:35.2]} 37... Qxd6 {[%clk 0:00:19.8]} 38. Qb2
{[%clk 0:00:28.7]} 38... Qf6 {[%clk 0:00:19.1]} 39. Qe2 {[%clk 0:00:23.7]} 39...
Rd3 {[%clk 0:00:13.1]} 40. Qe8+ {[%clk 0:00:22.5]} 40... Kh7 {[%clk 0:00:13.2]}
41. Qe4+ {[%clk 0:00:23.1]} 41... Qg6 {[%clk 0:00:13.8]} 42. Qe2 {[%clk
0:00:21.3]} 42... Rd6 {[%clk 0:00:13.5]} 43. Re1 {[%clk 0:00:20.6]} 43... Qd3
{[%clk 0:00:11.3]} 44. Qe7 {[%clk 0:00:19.9]} 44... Rf6 {[%clk 0:00:10.5]} 45.
Re2 {[%clk 0:00:18.9]} 45... Qd1+ {[%clk 0:00:09.1]} 46. Kg2 {[%clk 0:00:19]}
46... Qd5+ {[%clk 0:00:09.7]} 47. Kg1 {[%clk 0:00:18.6]} 47... c3 {[%clk
0:00:10.2]} 48. Qe3 {[%clk 0:00:17.9]} 48... c2 {[%clk 0:00:08.3]} 49. Qc1
{[%clk 0:00:14.3]} 49... Qd1+ {[%clk 0:00:07.6]} 50. Re1 {[%clk 0:00:15]} 50...
Qxc1 {[%clk 0:00:05.4]} 51. Rxc1 {[%clk 0:00:15.9]} 51... Rc6 {[%clk 0:00:05.2]}
52. Kf1 {[%clk 0:00:16.5]} 52... a5 {[%clk 0:00:03.3]} 53. bxa5 {[%clk 0:00:17]}
53... b4 {[%clk 0:00:04.2]} 54. a6 {[%clk 0:00:17.4]} 54... b3 {[%clk
0:00:04.7]} 55. a7 {[%clk 0:00:18]} 55... Rc8 {[%clk 0:00:04.6]} 56. Ke2 {[%clk
0:00:16.9]} 56... Ra8 {[%clk 0:00:03.5]} 57. Kd2 {[%clk 0:00:15.7]} 57... Rxa7
{[%clk 0:00:03.7]} 58. Kc3 {[%clk 0:00:15.5]} 58... Rb7 {[%clk 0:00:04]} 59. Kb2
{[%clk 0:00:15.8]} 59... Kg6 {[%clk 0:00:03.6]} 60. Re1 {[%clk 0:00:14.4]} 60...
Kf7 {[%clk 0:00:04]} 61. f3 {[%clk 0:00:14.8]} 61... Kf6 {[%clk 0:00:04.3]} 62.
g4 {[%clk 0:00:14.9]} 62... Rb6 {[%clk 0:00:04.6]} 63. h4 {[%clk 0:00:15.1]}
63... g5 {[%clk 0:00:04.6]} 64. h5 {[%clk 0:00:15.1]} 64... Rb4 {[%clk
0:00:04.1]} 65. Re2 {[%clk 0:00:14.9]} 65... Rc4 {[%clk 0:00:04]} 66. Re1 {[%clk
0:00:15.4]} 66... Rb4 {[%clk 0:00:03.9]} 67. Re2 {[%clk 0:00:15.6]} 67... Rb6
{[%clk 0:00:04.4]} 68. Re3 {[%clk 0:00:15.7]} 68... Rb7 {[%clk 0:00:04.5]} 69.
Re1 {[%clk 0:00:15.9]} 69... Kf7 {[%clk 0:00:04.6]} 70. Re3 {[%clk 0:00:16]}
70... Rb8 {[%clk 0:00:04.8]} 71. Re1 {[%clk 0:00:16.1]} 71... Kf6 {[%clk
0:00:05.2]} 72. Re2 {[%clk 0:00:16.1]} 72... Rb5 {[%clk 0:00:05.4]} 73. Re3
{[%clk 0:00:16.2]} 73... Rc5 {[%clk 0:00:05.5]} 74. Re1 {[%clk 0:00:16.4]} 74...
Re5 {[%clk 0:00:04.9]} 75. Ra1 {[%clk 0:00:13.7]} 75... Re3 {[%clk 0:00:05.4]}
76. Ra6+ {[%clk 0:00:13.1]} 76... Ke5 {[%clk 0:00:04.7]} 77. Rxh6 {[%clk
0:00:12.6]} 77... Re1 {[%clk 0:00:04.7]} 78. Rc6 {[%clk 0:00:12.9]} 78... Rb1+
{[%clk 0:00:04.9]} 79. Ka3 {[%clk 0:00:12.3]} 79... c1=Q+ {[%clk 0:00:05.1]} 80.
Rxc1 {[%clk 0:00:12.5]} 80... Rxc1 {[%clk 0:00:06]} 81. Kxb3 {[%clk 0:00:13.4]}
81... Rh1 {[%clk 0:00:06.2]} 82. Kc3 {[%clk 0:00:14]} 82... Kf4 {[%clk
0:00:06.6]} 83. Kd4 {[%clk 0:00:13.6]} 83... Kxf3 {[%clk 0:00:07.5]} 84. Ke5
{[%clk 0:00:14.2]} 84... Kxg4 {[%clk 0:00:07.7]} 85. Kf6 {[%clk 0:00:15.1]}
85... Rxh5 {[%clk 0:00:07.7]} 86. Kg6 {[%clk 0:00:16]} 86... Rh3 {[%clk
0:00:08.4]} 0-1

[Event "*** SCC Grand Prix: Titled Tuesday Blitz"]
[Site "Chess.com"]
[Date "2020.09.29"]
[Round "4"]
[White "Karacsonyi_Gellert"]
[Black "FontVella8"]
[Result "0-1"]
[WhiteElo "2668"]
[BlackElo "2487"]
[TimeControl "180+1"]
[EndTime "10:40:57 PDT"]
[Termination "FontVella8 won by checkmate"]

1. e4 {[%clk 0:03:00.9]} 1... e5 {[%clk 0:02:57.7]} 2. Nf3 {[%clk 0:03:00.6]}
2... Nc6 {[%clk 0:02:56.4]} 3. Bb5 {[%clk 0:03:01]} 3... g6 {[%clk 0:02:55.9]}
4. d4 {[%clk 0:02:57.7]} 4... exd4 {[%clk 0:02:53.7]} 5. Bg5 {[%clk 0:02:58.1]}
5... Be7 {[%clk 0:02:51.6]} 6. Bxe7 {[%clk 0:02:57.4]} 6... Qxe7 {[%clk
0:02:51.6]} 7. O-O {[%clk 0:02:56.9]} 7... Nf6 {[%clk 0:02:50.3]} 8. Nxd4 {[%clk
0:02:51.4]} 8... O-O {[%clk 0:02:44]} 9. Nxc6 {[%clk 0:02:26.1]} 9... dxc6
{[%clk 0:02:43.6]} 10. Bd3 {[%clk 0:02:26.7]} 10... Nxe4 {[%clk 0:02:36.1]} 11.
Qe2 {[%clk 0:02:16.3]} 11... f5 {[%clk 0:02:33.6]} 12. Nd2 {[%clk 0:01:46.5]}
12... Qf6 {[%clk 0:01:57.6]} 13. Bxe4 {[%clk 0:01:32.6]} 13... fxe4 {[%clk
0:01:57.5]} 14. c3 {[%clk 0:01:32.9]} 14... Bf5 {[%clk 0:01:50.4]} 15. Qc4+
{[%clk 0:01:26.8]} 15... Qf7 {[%clk 0:01:48.4]} 16. Qb4 {[%clk 0:01:22.4]} 16...
b6 {[%clk 0:01:10]} 17. Rae1 {[%clk 0:01:15.4]} 17... a5 {[%clk 0:01:05.5]} 18.
Qa4 {[%clk 0:01:11.4]} 18... Rae8 {[%clk 0:00:56.9]} 19. Qxc6 {[%clk 0:01:08]}
19... Qxa2 {[%clk 0:00:55.1]} 20. Nxe4 {[%clk 0:00:55.4]} 20... Bxe4 {[%clk
0:00:51.3]} 21. Rxe4 {[%clk 0:00:56.3]} 21... Rxe4 {[%clk 0:00:51.2]} 22. Qxe4
{[%clk 0:00:54.3]} 22... Qxb2 {[%clk 0:00:50.6]} 23. Qe6+ {[%clk 0:00:54.4]}
23... Rf7 {[%clk 0:00:46.8]} 24. Qe8+ {[%clk 0:00:50.7]} 24... Kg7 {[%clk
0:00:46.7]} 25. Qe5+ {[%clk 0:00:50.8]} 25... Kg8 {[%clk 0:00:43.3]} 26. Qe8+
{[%clk 0:00:47.1]} 26... Kg7 {[%clk 0:00:41]} 27. Qe5+ {[%clk 0:00:47.6]} 27...
Kg8 {[%clk 0:00:19.3]} 28. Kh1 {[%clk 0:00:41.3]} 28... Qd2 {[%clk 0:00:18]} 29.
Qe8+ {[%clk 0:00:36.4]} 29... Kg7 {[%clk 0:00:18.3]} 30. Qe5+ {[%clk 0:00:36.5]}
30... Kf8 {[%clk 0:00:18.5]} 31. Re1 {[%clk 0:00:33.6]} 31... Kg8 {[%clk
0:00:18.4]} 32. f3 {[%clk 0:00:30.5]} 32... a4 {[%clk 0:00:15.8]} 33. Ra1 {[%clk
0:00:22.6]} 33... a3 {[%clk 0:00:14.3]} 34. Qe8+ {[%clk 0:00:21.5]} 34... Kg7
{[%clk 0:00:14.6]} 35. Qe5+ {[%clk 0:00:21]} 35... Kh6 {[%clk 0:00:14.7]} 36. h3
{[%clk 0:00:12.8]} 36... a2 {[%clk 0:00:14.2]} 37. Qe6 {[%clk 0:00:08.6]} 37...
Rd7 {[%clk 0:00:12.9]} 38. Rxa2 {[%clk 0:00:07.7]} 38... Qc1+ {[%clk 0:00:08.2]}
39. Kh2 {[%clk 0:00:07.9]} 39... Qf4+ {[%clk 0:00:08.9]} 40. Kg1 {[%clk
0:00:05]} 40... Rd1+ {[%clk 0:00:08.4]} 41. Kf2 {[%clk 0:00:05.4]} 41... Rd2+
{[%clk 0:00:06]} 42. Rxd2 {[%clk 0:00:04.5]} 42... Qxd2+ {[%clk 0:00:06.9]} 43.
Kf1 {[%clk 0:00:05.1]} 43... Qxc3 {[%clk 0:00:06.5]} 44. Qe7 {[%clk 0:00:03.9]}
44... Qc1+ {[%clk 0:00:05.9]} 45. Ke2 {[%clk 0:00:03.2]} 45... Qc2+ {[%clk
0:00:05.7]} 46. Kf1 {[%clk 0:00:03.6]} 46... Qd3+ {[%clk 0:00:06]} 47. Ke1
{[%clk 0:00:03.6]} 47... Qc3+ {[%clk 0:00:05]} 48. Kf1 {[%clk 0:00:03]} 48...
Qc4+ {[%clk 0:00:04.9]} 49. Ke1 {[%clk 0:00:03]} 49... Qd4 {[%clk 0:00:04.6]}
50. Qf8+ {[%clk 0:00:02.8]} 50... Kg5 {[%clk 0:00:03.9]} 51. Qe7+ {[%clk
0:00:02]} 51... Kf5 {[%clk 0:00:03.5]} 52. Qf7+ {[%clk 0:00:01.7]} 52... Ke5
{[%clk 0:00:03.5]} 53. Qxh7 {[%clk 0:00:02.6]} 53... Kd5 {[%clk 0:00:04]} 54.
Kf1 {[%clk 0:00:02.8]} 54... Qd1+ {[%clk 0:00:03.5]} 55. Kf2 {[%clk 0:00:03.7]}
55... Qd2+ {[%clk 0:00:03.8]} 56. Kg3 {[%clk 0:00:04.1]} 56... Qg5+ {[%clk
0:00:04.4]} 57. Kh2 {[%clk 0:00:04.4]} 57... Qe5+ {[%clk 0:00:04.7]} 58. Kg1
{[%clk 0:00:04.7]} 58... c5 {[%clk 0:00:05.3]} 59. Qd7+ {[%clk 0:00:03.8]} 59...
Kc4 {[%clk 0:00:05.5]} 60. Qa4+ {[%clk 0:00:03.7]} 60... Kd3 {[%clk 0:00:06.1]}
61. Qb3+ {[%clk 0:00:03.8]} 61... Kd2 {[%clk 0:00:05.9]} 62. Qxb6 {[%clk
0:00:04.6]} 62... Qd4+ {[%clk 0:00:05.6]} 63. Kh2 {[%clk 0:00:04.8]} 63... Qe5+
{[%clk 0:00:06]} 64. g3 {[%clk 0:00:04.6]} 64... c4 {[%clk 0:00:06.4]} 65. Qb4+
{[%clk 0:00:02.5]} 65... c3 {[%clk 0:00:06.7]} 66. h4 {[%clk 0:00:02.9]} 66...
Qe2+ {[%clk 0:00:06.6]} 67. Kh3 {[%clk 0:00:03.3]} 67... Qxf3 {[%clk 0:00:07.1]}
68. Qd4+ {[%clk 0:00:03]} 68... Ke2 {[%clk 0:00:07.5]} 69. Qc4+ {[%clk
0:00:02.1]} 69... Kf2 {[%clk 0:00:08.1]} 70. Qd4+ {[%clk 0:00:01.9]} 70... Qe3
{[%clk 0:00:08.4]} 71. Qf6+ {[%clk 0:00:02.2]} 71... Kg1 {[%clk 0:00:08.4]} 72.
Qxg6 {[%clk 0:00:01.9]} 72... Kf2 {[%clk 0:00:04.9]} 73. Qf5+ {[%clk 0:00:01.5]}
73... Ke2 {[%clk 0:00:03.9]} 74. Qc2+ {[%clk 0:00:01.8]} 74... Kf3 {[%clk
0:00:03.8]} 75. Qd1+ {[%clk 0:00:01.7]} 75... Ke4 {[%clk 0:00:03.8]} 76. Qh1+
{[%clk 0:00:01.5]} 76... Qf3 {[%clk 0:00:03]} 77. Qb1+ {[%clk 0:00:02.4]} 77...
Kd4 {[%clk 0:00:03.3]} 78. Qb6+ {[%clk 0:00:02.5]} 78... Kd3 {[%clk 0:00:03.4]}
79. Qd6+ {[%clk 0:00:02.4]} 79... Kc2 {[%clk 0:00:03.6]} 80. Qg6+ {[%clk
0:00:03]} 80... Kd2 {[%clk 0:00:03.5]} 81. Qd6+ {[%clk 0:00:03]} 81... Qd3
{[%clk 0:00:03.8]} 82. Qf4+ {[%clk 0:00:03.2]} 82... Qe3 {[%clk 0:00:04]} 83.
Qb4 {[%clk 0:00:03.7]} 83... Ke2 {[%clk 0:00:03.4]} 84. Qc4+ {[%clk 0:00:03.5]}
84... Kf2 {[%clk 0:00:03.7]} 85. h5 {[%clk 0:00:02.8]} 85... Qxg3# {[%clk
0:00:03.6]} 0-1

[Event "*** SCC Grand Prix: Titled Tuesday Blitz"]
[Site "Chess.com"]
[Date "2020.09.29"]
[Round "4"]
[White "vugarrasulov"]
[Black "LiemLe"]
[Result "1/2-1/2"]
[WhiteElo "2796"]
[BlackElo "2983"]
[TimeControl "180+1"]
[EndTime "10:41:08 PDT"]
[Termination "Game drawn - insufficient material"]

1. d4 {[%clk 0:03:00.9]} 1... Nf6 {[%clk 0:02:59.6]} 2. c4 {[%clk 0:03:01.1]}
2... e6 {[%clk 0:03:00.1]} 3. Nc3 {[%clk 0:03:00.3]} 3... Bb4 {[%clk 0:02:59.4]}
4. Qc2 {[%clk 0:03:00.8]} 4... d5 {[%clk 0:02:58.8]} 5. Nf3 {[%clk 0:02:59.2]}
5... O-O {[%clk 0:02:53.3]} 6. Bg5 {[%clk 0:02:59.1]} 6... h6 {[%clk 0:02:52.2]}
7. Bxf6 {[%clk 0:02:56.5]} 7... Qxf6 {[%clk 0:02:53.1]} 8. a3 {[%clk 0:02:57]}
8... Bxc3+ {[%clk 0:02:52.6]} 9. Qxc3 {[%clk 0:02:57.9]} 9... c6 {[%clk
0:02:43.3]} 10. e3 {[%clk 0:02:57.2]} 10... Nd7 {[%clk 0:02:43.3]} 11. Be2
{[%clk 0:02:53.2]} 11... dxc4 {[%clk 0:02:43.3]} 12. Bxc4 {[%clk 0:02:49.2]}
12... b6 {[%clk 0:02:42.1]} 13. O-O {[%clk 0:02:47.1]} 13... Bb7 {[%clk
0:02:42.2]} 14. Rac1 {[%clk 0:02:45]} 14... Rfd8 {[%clk 0:02:37.1]} 15. b4
{[%clk 0:02:28.8]} 15... c5 {[%clk 0:02:36.1]} 16. dxc5 {[%clk 0:02:27.5]} 16...
bxc5 {[%clk 0:02:29]} 17. Qxf6 {[%clk 0:02:25.5]} 17... gxf6 {[%clk 0:02:29.9]}
18. b5 {[%clk 0:02:21.8]} 18... Nb6 {[%clk 0:02:25.6]} 19. Rc3 {[%clk
0:02:03.7]} 19... a6 {[%clk 0:02:06.9]} 20. bxa6 {[%clk 0:02:00.3]} 20... Bxa6
{[%clk 0:02:07.8]} 21. Bxa6 {[%clk 0:01:57.6]} 21... Rxa6 {[%clk 0:02:08.7]} 22.
Rxc5 {[%clk 0:01:55.8]} 22... Rxa3 {[%clk 0:02:08.6]} 23. h3 {[%clk 0:01:52.9]}
23... Nd5 {[%clk 0:02:01.9]} 24. Rfc1 {[%clk 0:01:51.7]} 24... Kg7 {[%clk
0:02:01.8]} 25. Nd4 {[%clk 0:01:49.6]} 25... Ra2 {[%clk 0:01:55.1]} 26. Rc8
{[%clk 0:01:41.2]} 26... Rxc8 {[%clk 0:01:51.8]} 27. Rxc8 {[%clk 0:01:42.1]}
27... f5 {[%clk 0:01:51.8]} 28. Rb8 {[%clk 0:01:33.4]} 28... f4 {[%clk
0:01:46.5]} 29. exf4 {[%clk 0:01:27.1]} 29... Nxf4 {[%clk 0:01:47.4]} 30. h4
{[%clk 0:01:22.4]} 30... Nd3 {[%clk 0:01:41.7]} 31. Rb7 {[%clk 0:01:04.2]} 31...
Kg6 {[%clk 0:01:27.1]} 32. h5+ {[%clk 0:00:56.2]} 32... Kf6 {[%clk 0:01:26.4]}
33. Rb3 {[%clk 0:00:55.9]} 33... Rd2 {[%clk 0:01:19.5]} 34. Nc6 {[%clk
0:00:40.6]} 34... Kg5 {[%clk 0:01:12.1]} 35. Rb5+ {[%clk 0:00:34.1]} 35... f5
{[%clk 0:01:10.1]} 36. Nd4 {[%clk 0:00:33.4]} 36... Kf6 {[%clk 0:01:10.4]} 37.
Rb6 {[%clk 0:00:28.5]} 37... Nf4 {[%clk 0:01:01.2]} 38. Nf3 {[%clk 0:00:28.5]}
38... Rd1+ {[%clk 0:01:00.8]} 39. Kh2 {[%clk 0:00:29]} 39... Nxh5 {[%clk
0:01:01.5]} 40. Rb8 {[%clk 0:00:25.8]} 40... Nf4 {[%clk 0:00:55.7]} 41. Rf8+
{[%clk 0:00:19.1]} 41... Kg7 {[%clk 0:00:55.3]} 42. Re8 {[%clk 0:00:19.2]} 42...
Rd6 {[%clk 0:00:51]} 43. Re7+ {[%clk 0:00:16.3]} 43... Kg6 {[%clk 0:00:47.8]}
44. Ra7 {[%clk 0:00:16.3]} 44... Nd3 {[%clk 0:00:46.1]} 45. Kg1 {[%clk
0:00:14.3]} 45... Rb6 {[%clk 0:00:45.1]} 46. Ra1 {[%clk 0:00:12.3]} 46... Rb2
{[%clk 0:00:41.6]} 47. Rf1 {[%clk 0:00:11.7]} 47... e5 {[%clk 0:00:39.7]} 48.
Ne1 {[%clk 0:00:11]} 48... Nf4 {[%clk 0:00:36.9]} 49. Nf3 {[%clk 0:00:11.2]}
49... Kf6 {[%clk 0:00:34.7]} 50. Ra1 {[%clk 0:00:10.9]} 50... Rb6 {[%clk
0:00:32.5]} 51. Ra8 {[%clk 0:00:09.8]} 51... Nd3 {[%clk 0:00:25.9]} 52. Rf8+
{[%clk 0:00:08.8]} 52... Ke6 {[%clk 0:00:26.1]} 53. Re8+ {[%clk 0:00:09.3]}
53... Kf7 {[%clk 0:00:25]} 54. Rd8 {[%clk 0:00:08.4]} 54... e4 {[%clk
0:00:23.5]} 55. Nd4 {[%clk 0:00:09]} 55... f4 {[%clk 0:00:20.5]} 56. f3 {[%clk
0:00:08]} 56... Rb1+ {[%clk 0:00:16.1]} 57. Kh2 {[%clk 0:00:08]} 57... Nf2
{[%clk 0:00:17]} 58. g3 {[%clk 0:00:05.5]} 58... exf3 {[%clk 0:00:15.5]} 59.
Nxf3 {[%clk 0:00:05]} 59... Rb3 {[%clk 0:00:15.7]} 60. Kg2 {[%clk 0:00:03.1]}
60... fxg3 {[%clk 0:00:14.3]} 61. Ne5+ {[%clk 0:00:04]} 61... Ke6 {[%clk
0:00:14]} 62. Ng6 {[%clk 0:00:02.7]} 62... Ng4 {[%clk 0:00:13.4]} 63. Nf4+
{[%clk 0:00:02.8]} 63... Kf5 {[%clk 0:00:13.3]} 64. Rf8+ {[%clk 0:00:02.4]}
64... Ke4 {[%clk 0:00:13.6]} 65. Nh5 {[%clk 0:00:02.8]} 65... Ne3+ {[%clk
0:00:09.8]} 66. Kxg3 {[%clk 0:00:02.4]} 66... Nd5+ {[%clk 0:00:08.7]} 67. Kh4
{[%clk 0:00:02.3]} 67... Ke5 {[%clk 0:00:08.2]} 68. Re8+ {[%clk 0:00:02.2]}
68... Kd6 {[%clk 0:00:08]} 69. Rh8 {[%clk 0:00:03.1]} 69... Rb4+ {[%clk
0:00:07.8]} 70. Kg3 {[%clk 0:00:03.7]} 70... Ke5 {[%clk 0:00:06.8]} 71. Rxh6
{[%clk 0:00:03.8]} 71... Ne3 {[%clk 0:00:07.7]} 72. Rh8 {[%clk 0:00:03]} 72...
Nf5+ {[%clk 0:00:07.9]} 73. Kf3 {[%clk 0:00:03.6]} 73... Rb3+ {[%clk 0:00:08]}
74. Kf2 {[%clk 0:00:04]} 74... Rb2+ {[%clk 0:00:08]} 75. Kf3 {[%clk 0:00:04.1]}
75... Nd4+ {[%clk 0:00:08.6]} 76. Kg3 {[%clk 0:00:04.1]} 76... Rb3+ {[%clk
0:00:08.6]} 77. Kg4 {[%clk 0:00:04.6]} 77... Rb1 {[%clk 0:00:08.5]} 78. Re8+
{[%clk 0:00:04.9]} 78... Kd6 {[%clk 0:00:08.6]} 79. Rd8+ {[%clk 0:00:04.7]}
79... Kc5 {[%clk 0:00:08.8]} 80. Rc8+ {[%clk 0:00:04.7]} 80... Kd5 {[%clk
0:00:07.7]} 81. Nf4+ {[%clk 0:00:03.8]} 81... Ke5 {[%clk 0:00:05.9]} 82. Re8+
{[%clk 0:00:04.3]} 82... Kf6 {[%clk 0:00:05.9]} 83. Rf8+ {[%clk 0:00:04.5]}
83... Kg7 {[%clk 0:00:05.2]} 84. Rd8 {[%clk 0:00:04.8]} 84... Rg1+ {[%clk
0:00:05.2]} 85. Kh3 {[%clk 0:00:05.3]} 85... Nf5 {[%clk 0:00:04.7]} 86. Kh2
{[%clk 0:00:05.1]} 86... Rf1 {[%clk 0:00:04.6]} 87. Ne6+ {[%clk 0:00:04.4]}
87... Kf6 {[%clk 0:00:04.7]} 88. Nd4 {[%clk 0:00:05.3]} 88... Rd1 {[%clk
0:00:04.2]} 89. Rf8+ {[%clk 0:00:05.2]} 89... Kg7 {[%clk 0:00:03.2]} 90. Rxf5
{[%clk 0:00:04.3]} 90... Rxd4 {[%clk 0:00:03.2]} 91. Kg3 {[%clk 0:00:05]} 91...
Rd6 {[%clk 0:00:03.3]} 92. Rf4 {[%clk 0:00:05.3]} 92... Rg6+ {[%clk 0:00:04.2]}
93. Rg4 {[%clk 0:00:05.7]} 93... Rxg4+ {[%clk 0:00:04.6]} 94. Kxg4 {[%clk
0:00:06.6]} 1/2-1/2